bitfinex-derivatives/quotes_ETHF0:USTF0_20250704
["timestamp","ask_amount","ask_price","bid_price","bid_amount"]
[1751589041497,1.45658,2592.2,2592.1,3.38905616]
[1751589041697,42.25658,2592.2,2592.1,3.38905616]
[1751589042398,42.25658,2592.2,2592.1,0.77131]
[1751589042593,41.4853,2592.2,2592.1,0.77131]
[1751589043298,41.4853,2592.2,2592.1,3.38905616]
[1751589043495,3.2078,2592.7,2592.5,0.77116]
[1751589043695,3.2078,2592.7,2592.6,0.77116]
[1751589043892,3.2078,2592.7,2592.6,1.46446]
[1751589044497,3.2078,2593.0,2592.9,0.77107]
[1751589044693,3.877,2593.3,2592.9,3.38881616]
[1751589044999,3.877,2593.3,2593.2,0.77098]
[1751589045395,3.877,2593.3,2592.7,1.9907]
[1751589045598,3.2078,2593.0,2592.9,0.77105]
[1751589045997,2.17099,2593.2,2593.1,0.77101]
[1751589048006,42.97099,2593.2,2593.1,0.77101]
[1751589050507,41.57098,2593.2,2593.1,0.77101]
[1751589051399,0.77098,2593.2,2593.1,0.77101]
[1751589052011,41.57098,2593.2,2593.1,0.77101]
[1751589054815,0.77104,2593.0,2592.9,4.05687616]
[1751589056213,0.77103,2593.1,2593.0,0.77101]
[1751589057917,41.571,2593.2,2593.1,0.77101]
[1751589059013,0.771,2593.2,2593.1,0.77101]
[1751589059820,0.77104,2593.1,2593.0,0.77102]
[1751589060121,0.771,2593.2,2593.1,0.77098]
[1751589060421,46.60439,2593.3,2592.9,3.28584616]
[1751589060621,0.77104,2593.1,2593.0,0.77101]
[1751589061020,0.771,2593.2,2593.1,0.77098]
[1751589061622,46.0075,2593.3,2592.9,3.28584616]
[1751589061923,0.77104,2593.1,2593.0,0.77101]
[1751589063420,1.92753,2593.1,2592.4,10.872]
[1751589063626,0.77114,2592.8,2592.7,0.77111]
[1751589064013,1.46744,2592.8,2592.7,0.77111]
[1751589064422,2.82124,2592.8,2592.7,0.77111]
[1751589064720,9.66784616,2592.8,2592.1,0.6414]
[1751589064921,1.928,2592.5,2592.0,3.2078]
[1751589065116,0.77131,2592.1,2592.0,0.77134]
[1751589065722,41.57131,2592.2,2592.1,0.77131]
[1751589066718,41.57128,2592.2,2592.1,3.38905616]
[1751589066923,40.8,2592.2,2592.1,3.38905616]
[1751589067124,3.2078,2592.3,2592.2,0.77128]
[1751589067322,3.2078,2592.3,2592.2,1.46598]
[1751589067625,44.0078,2592.3,2592.2,2.12038]
[1751589067826,1.40892,2592.4,2592.3,0.77125]
[1751589068021,1.40892,2592.4,2592.3,3.38899616]
[1751589070124,1.40892,2592.4,2592.3,0.77125]
[1751589070331,1.40892,2592.4,2592.0,0.77129]
[1751589070332,0.77132,2592.1,2592.0,0.77129]
[1751589071224,0.77132,2592.1,2592.0,3.38903616]
[1751589071929,0.7713,2592.2,2592.1,0.77129]
[1751589072329,0.77131,2592.1,2592.0,3.38906616]
[1751589072828,0.7713,2592.2,2592.1,0.77129]
[1751589078531,0.77131,2592.1,2592.0,3.38907616]
[1751589078730,0.7713,2592.2,2592.1,0.77128]
[1751589080937,3.97907,2592.3,2592.2,0.77128]
[1751589081137,3.97907,2592.3,2592.2,3.38902616]
[1751589081335,3.97907,2592.3,2592.2,0.77128]
[1751589082833,0.77127,2592.3,2592.2,0.77128]
[1751589085340,5.13579,2592.5,2592.4,0.77122]
[1751589085341,3.979,2592.5,2592.4,0.77122]
[1751589085541,3.979,2592.5,2592.4,3.38896616]
[1751589085542,3.2078,2592.5,2592.4,3.38896616]
[1751589085739,3.97899,2592.5,2592.4,0.77122]
[1751589086139,0.77127,2592.3,2592.2,0.77124]
[1751589086939,0.77131,2592.2,2592.1,0.77129]
[1751589087338,0.77131,2592.2,2592.1,1.42619]
[1751589090236,1.46076,2592.3,2592.1,0.6549]
[1751589090443,1.46076,2592.3,2592.2,3.38902616]
[1751589090840,1.46076,2592.3,2592.1,0.6549]
[1751589090841,0.77128,2592.2,2592.1,1.42618]
[1751589091638,0.77128,2592.2,2592.1,0.6549]
[1751589092743,0.77128,2592.2,2592.1,1.42621]
[1751589095346,0.77128,2592.2,2592.1,0.6549]
[1751589097148,0.77128,2592.2,2592.1,1.42621]
[1751589097348,0.77128,2592.2,2592.1,0.6549]
[1751589097650,0.77128,2592.2,2592.1,1.42621]
[1751589101352,41.57128,2592.2,2592.1,1.42621]
[1751589104248,40.8,2592.2,2592.1,1.42621]
[1751589104456,0.77126,2592.4,2592.3,0.77122]
[1751589104651,0.77128,2592.3,2592.2,2.61774616]
[1751589105155,44.0078,2592.5,2592.4,0.77122]
[1751589105457,40.8,2592.5,2592.4,3.38896616]
[1751589105856,40.8,2592.5,2592.4,4.04736616]
[1751589106052,41.57119,2592.5,2592.4,4.04736616]
[1751589106556,41.57119,2592.5,2592.4,1.42962]
[1751589107255,42.21689,2592.5,2592.4,1.42962]
[1751589107652,42.21689,2592.5,2592.4,0.6584]
[1751589108057,42.21689,2592.5,2592.4,1.42962]
[1751589109058,42.21689,2592.5,2592.4,4.04736616]
[1751589111864,41.4457,2592.5,2592.4,4.04736616]
[1751589112061,40.8,2592.5,2592.4,4.04736616]
[1751589112358,3.2078,2592.6,2592.5,0.77119]
[1751589112560,3.2078,2592.6,2592.5,2.75059]
[1751589114062,41.57111,2592.8,2592.7,0.77113]
[1751589114461,40.8,2592.8,2592.7,0.77113]
[1751589114660,41.5711,2592.8,2592.7,1.40473]
[1751589116264,41.5711,2592.8,2592.7,0.6336]
[1751589116766,41.5711,2592.8,2592.7,1.40473]
[1751589118569,0.7711,2592.8,2592.7,1.40473]
[1751589118768,0.6769,2592.8,2592.7,1.40473]
[1751589119370,1.448,2592.8,2592.7,1.40473]
[1751589120872,44.77888,2592.9,2592.8,0.7711]
[1751589121068,44.0078,2592.9,2592.8,3.38884616]
[1751589121275,0.77103,2593.1,2593.0,0.771]
[1751589121573,0.77103,2593.1,2593.0,3.38874616]
[1751589121868,41.57103,2593.1,2593.0,3.38874616]
[1751589123272,41.57103,2593.1,2593.0,2.61774616]
[1751589123673,41.57103,2593.1,2593.0,3.38878616]
[1751589125274,0.77104,2593.0,2592.9,0.77105]
[1751589125774,1.45284,2593.0,2592.9,0.77105]
[1751589126573,1.45284,2593.0,2592.9,3.38879616]
[1751589127477,1.45284,2593.0,2592.8,0.77107]
[1751589127478,0.7711,2592.9,2592.8,0.77107]
[1751589132175,44.76628616,2593.4,2592.9,0.77107]
[1751589132176,1.92738,2593.3,2592.9,0.77107]
[1751589132375,0.77098,2593.2,2593.1,3.38874616]
[1751589132876,41.57098,2593.2,2593.1,3.38874616]
[1751589133077,41.57098,2593.2,2593.1,2.61774616]
[1751589134079,0.77101,2593.1,2593.0,0.77102]
[1751589134379,1.43961,2593.1,2593.0,0.77102]
[1751589138580,0.77101,2593.1,2593.0,0.77102]
[1751589141278,0.77101,2593.1,2593.0,1.41272]
[1751589142281,0.77104,2593.0,2592.9,3.38878616]
[1751589142585,1.42714,2593.0,2592.9,3.38878616]
[1751589144287,0.77107,2592.9,2592.8,3.2078]
[1751589144584,0.77116,2592.6,2592.5,3.2078]
[1751589144783,0.77116,2592.6,2592.5,3.97899]
[1751589144982,1.92747,2593.2,2592.9,0.77105]
[1751589145180,41.57101,2593.1,2593.0,2.61774616]
[1751589146083,0.77107,2592.9,2592.8,3.2078]
[1751589147182,0.77119,2592.5,2592.4,0.7712]
[1751589147380,0.77122,2592.4,2592.3,3.97903]
[1751589147587,1.44352,2592.4,2592.3,3.97903]
[1751589148889,1.44352,2592.4,2592.3,6.59677616]
[1751589149491,0.6723,2592.4,2592.3,6.59677616]
[1751589150490,41.57118,2592.6,2592.5,0.77119]
[1751589150791,41.57118,2592.6,2592.5,3.38893616]
[1751589154589,40.8,2592.6,2592.5,3.38893616]
[1751589154788,0.77122,2592.5,2592.3,3.2078]
[1751589154992,0.77122,2592.5,2592.4,0.77122]
[1751589156695,0.77122,2592.5,2592.4,3.38896616]
[1751589156892,41.57118,2592.6,2592.5,0.77119]
[1751589157296,41.57118,2592.6,2592.5,1.44949]
[1751589161497,40.8,2592.6,2592.5,1.44949]
[1751589161889,0.77114,2592.7,2592.6,0.77116]
[1751589162091,0.77114,2592.7,2592.6,3.38890616]
[1751589162797,41.57111,2592.8,2592.7,0.77113]
[1751589163397,0.77108,2593.0,2592.9,0.77105]
[1751589163595,0.77108,2593.0,2592.9,3.38879616]
[1751589163797,41.57108,2593.0,2592.9,3.38879616]
[1751589165098,41.57108,2593.0,2592.9,2.61774616]
[1751589165300,41.57108,2593.0,2592.8,1.45087]
[1751589165301,0.77107,2592.9,2592.8,1.45087]
[1751589169395,0.77106,2593.0,2592.9,0.77101]
[1751589169599,0.77106,2593.0,2592.9,3.38875616]
[1751589169804,41.57106,2593.0,2592.9,3.38875616]
[1751589171500,0.77107,2592.9,2592.8,1.45088]
[1751589180210,0.77105,2593.0,2592.9,0.77107]
[1751589180410,0.77105,2593.0,2592.9,4.66721616]
[1751589182314,0.77105,2593.0,2592.9,3.38881616]
[1751589189925,0.77107,2592.9,2592.8,0.7711]
[1751589190624,0.77113,2592.8,2592.7,0.7711]
[1751589190821,1.45203,2592.8,2592.7,0.7711]
[1751589191719,1.45203,2592.8,2592.7,3.38884616]
[1751589193124,43.40058,2593.1,2592.8,0.77105]
[1751589193125,0.77109,2592.9,2592.8,0.77105]
[1751589193423,1.43026,2593.0,2592.9,0.77107]
[1751589193725,1.43026,2593.0,2592.9,3.38881616]
[1751589196829,0.77101,2593.3,2593.2,0.77095]
[1751589197029,1.90859993,2593.3,2593.2,3.38869616]
[1751589197422,0.77091,2593.5,2593.4,0.77087]
[1751589197626,0.77091,2593.5,2593.4,6.59641616]
[1751589197820,42.70821736,2593.5,2593.4,6.59641616]
[1751589198124,41.57091,2593.5,2593.4,5.82554616]
[1751589199431,41.57091,2593.5,2593.4,2.61774616]
[1751589199628,0.77092,2593.4,2593.3,0.77093]
[1751589199830,40.8,2593.5,2593.1,7.08273]
[1751589199831,0.77095,2593.3,2593.1,3.8596]
[1751589200029,0.77098,2593.2,2593.1,3.9788]
[1751589200434,0.77098,2593.2,2593.1,3.2078]
[1751589200627,1.92753,2593.1,2592.8,3.2078]
[1751589200827,1.92753,2593.1,2592.5,3.2078]
[1751589200828,0.77116,2592.6,2592.5,3.2078]
[1751589201327,41.57116,2592.6,2592.5,3.2078]
[1751589201530,42.94096,2592.6,2592.5,3.2078]
[1751589202431,42.94096,2592.6,2592.5,3.97899]
[1751589204330,35.075,2593.0,2592.5,5.82554616]
[1751589204527,0.6435,2592.9,2592.8,3.38884616]
[1751589204724,35.075,2593.0,2592.8,3.38884616]
[1751589204725,0.77106,2593.0,2592.9,0.77107]
[1751589204928,41.57106,2593.0,2592.9,0.77107]
[1751589205130,1.41453,2593.1,2593.0,0.77104]
[1751589205729,42.21453,2593.1,2593.0,0.77104]
[1751589208036,0.77107,2593.0,2592.9,0.77105]
[1751589211435,43.37106,2593.1,2592.4,4.54578616]
[1751589211638,0.77119,2592.5,2592.4,0.7712]
[1751589214539,0.77122,2592.4,2592.3,6.59677616]
[1751589215236,0.77122,2592.4,2592.3,3.2078]
[1751589216338,0.77122,2592.4,2592.3,3.97905]
[1751589217540,0.77122,2592.4,2592.3,6.59679616]
[1751589217938,0.77122,2592.4,2592.3,3.97905]
[1751589221740,0.77122,2592.4,2592.3,0.77125]
[1751589225343,0.6938,2592.6,2592.4,0.77119]
[1751589225535,0.77119,2592.5,2592.4,0.77119]
[1751589228247,0.77122,2592.4,2592.3,3.38897616]
[1751589236151,0.77125,2592.3,2592.2,1.3356]
[1751589236852,0.77125,2592.3,2592.2,2.10688]
[1751589238751,0.77125,2592.4,2592.3,0.77122]
[1751589238946,0.77125,2592.4,2592.3,3.38896616]
[1751589239142,0.77125,2592.4,2592.3,4.69506616]
[1751589239851,0.77121,2592.5,2592.4,0.77116]
[1751589240448,0.77118,2592.6,2592.5,0.77116]
[1751589240649,0.77113,2592.8,2592.7,0.7711]
[1751589240850,0.77113,2592.7,2592.6,1.42084]
[1751589241050,0.77113,2592.7,2592.6,4.03858616]
[1751589241450,0.77113,2592.7,2592.6,3.26744616]
[1751589241650,0.77113,2592.7,2592.6,4.03860616]
[1751589241853,0.77111,2592.8,2592.7,0.7711]
[1751589242054,0.77111,2592.8,2592.7,1.4696]
[1751589242852,0.77111,2592.8,2592.7,0.6985]
[1751589243349,0.77111,2592.8,2592.7,1.46963]
[1751589244353,0.77111,2592.8,2592.7,0.6985]
[1751589244554,0.77111,2592.8,2592.7,1.46963]
[1751589247153,0.77111,2592.8,2592.7,0.6985]
[1751589247955,0.77111,2592.8,2592.7,1.46963]
[1751589249956,0.77111,2592.8,2592.7,0.6985]
[1751589251053,0.77122,2592.4,2592.3,3.97902]
[1751589251856,0.77122,2592.4,2592.3,6.59676616]
[1751589252355,0.7712,2592.5,2592.4,0.77119]
[1751589256055,0.6716,2592.6,2592.4,0.77119]
[1751589256258,4.5078,2593.0,2592.6,0.77112]
[1751589256457,0.77114,2592.7,2592.6,0.77112]
[1751589256658,0.77114,2592.7,2592.6,1.45312]
[1751589258758,0.77114,2592.7,2592.6,0.77112]
[1751589261061,0.77113,2592.8,2592.7,0.77111]
[1751589261264,0.77109,2592.9,2592.8,0.7711]
[1751589261562,0.77109,2592.9,2592.8,2.1116]
[1751589261758,0.77109,2592.9,2592.8,3.4004]
[1751589261959,0.77107,2592.9,2592.8,3.4004]
[1751589262262,3.97886,2593.0,2592.9,0.77107]
[1751589262464,3.97886,2593.0,2592.9,3.38881616]
[1751589264865,3.2078,2593.0,2592.9,3.38881616]
[1751589265665,3.97884,2593.0,2592.9,3.38881616]
[1751589266363,3.2078,2593.0,2592.9,3.38881616]
[1751589266566,3.97884,2593.0,2592.9,3.38881616]
[1751589266764,42.25342,2593.1,2593.0,0.77104]
[1751589268364,0.77104,2593.0,2592.9,3.38879616]
[1751589268566,0.77107,2592.9,2592.8,2.11158]
[1751589269765,0.77106,2593.0,2592.9,0.77104]
[1751589277769,0.77106,2593.0,2592.9,3.38878616]
[1751589285074,41.4824,2593.1,2593.0,0.77104]
[1751589285273,40.8,2593.1,2593.0,0.77104]
[1751589285673,0.771,2593.2,2593.1,0.77101]
[1751589286079,41.571,2593.2,2593.1,1.40571]
[1751589286278,40.8,2593.2,2593.1,4.02345616]
[1751589288179,0.77093,2593.5,2593.4,0.77088]
[1751589288374,0.77093,2593.5,2593.4,3.38862616]
[1751589288678,41.57093,2593.5,2593.4,3.38862616]
[1751589289078,41.57093,2593.5,2593.4,4.07722616]
[1751589300691,1.3415,2593.9,2593.5,0.77089]
[1751589300987,1.92689,2594.0,2593.7,3.38854616]
[1751589300988,1.47243,2593.8,2593.7,3.38854616]
[1751589301188,42.27243,2593.8,2593.7,0.7708]
[1751589305495,0.77086,2593.6,2593.5,3.38859616]
[1751589305695,0.77086,2593.7,2593.6,0.77083]
[1751589306495,42.27242,2593.8,2593.7,0.77083]
[1751589307496,42.27242,2593.8,2593.7,3.38857616]
[1751589310499,2.57495,2594.1,2593.7,3.38857616]
[1751589310500,37.61195,2594.1,2593.8,0.77077]
[1751589310802,0.7708,2593.9,2593.8,3.28194616]
[1751589311098,0.7708,2593.9,2593.5,1.2934]
[1751589311099,0.7708,2593.8,2593.7,0.77081]
[1751589316499,0.77083,2593.7,2593.6,4.07638616]
[1751589316700,1.46983,2593.7,2593.6,4.07638616]
[1751589317603,0.699,2593.7,2593.6,4.07638616]
[1751589318199,0.77082,2593.8,2593.7,0.77083]
[1751589318400,0.7708,2593.9,2593.8,0.77077]
[1751589318802,0.7708,2593.9,2593.8,3.38851616]
[1751589321805,0.7708,2593.9,2593.8,2.8630046]
[1751589328512,42.24386,2594.0,2593.9,0.77077]
[1751589329519,42.24386,2594.0,2593.9,1.40767]
[1751589329706,41.4731,2594.0,2593.9,1.40767]
[1751589329911,0.77072,2594.1,2594.0,0.77074]
[1751589330112,0.77072,2594.1,2594.0,2.8629746]
[1751589330515,41.57072,2594.1,2594.0,2.8629746]
[1751589330814,40.8,2594.1,2594.0,2.8629746]
[1751589331515,41.57071,2594.1,2594.0,2.8629746]
[1751589332110,40.8,2594.1,2594.0,2.8629746]
[1751589332513,41.57071,2594.1,2594.0,2.8629746]
[1751589334416,0.77066,2594.3,2594.2,0.77068]
[1751589334612,0.77066,2594.3,2594.2,2.8629146]
[1751589335112,41.57066,2594.3,2594.2,2.8629146]
[1751589340721,0.77061,2594.6,2594.5,0.77056]
[1751589340918,0.77061,2594.6,2594.5,2.8627946]
[1751589341122,41.57061,2594.6,2594.5,2.8627946]
[1751589343716,41.57061,2594.6,2594.5,3.38417117]
[1751589347023,41.57061,2594.6,2594.5,2.61361117]
[1751589347524,41.57061,2594.6,2594.5,3.38420117]
[1751589349025,41.57061,2594.6,2594.5,2.61361117]
[1751589350624,41.57061,2594.6,2594.5,3.38420117]
[1751589353823,41.57061,2594.6,2594.3,1.3524]
[1751589354127,0.77062,2594.5,2594.4,0.7706]
[1751589355121,0.77062,2594.5,2594.4,3.38421117]
[1751589355623,41.57061,2594.6,2594.3,1.3524]
[1751589355827,0.77073,2594.2,2594.1,0.77068]
[1751589357227,0.77073,2594.2,2594.1,1.42308]
[1751589362533,1.44818,2594.3,2594.2,0.77068]
[1751589362735,0.77068,2594.3,2594.2,3.38429117]
[1751589362929,0.77068,2594.3,2594.2,4.03169117]
[1751589364335,0.77068,2594.3,2594.2,3.38429117]
[1751589365134,0.77068,2594.3,2594.2,2.61361117]
[1751589366132,1.46328,2594.3,2594.2,2.61361117]
[1751589368137,0.77074,2594.0,2593.9,0.6537]
[1751589368340,0.77077,2593.9,2593.8,4.07860117]
[1751589368538,1.46337,2593.9,2593.8,4.07860117]
[1751589369036,1.46337,2593.9,2593.8,3.38440117]
[1751589369435,1.46337,2593.9,2593.8,2.61361117]
[1751589369739,1.46337,2593.9,2593.8,3.38441117]
[1751589370238,1.46337,2593.9,2593.8,2.61361117]
[1751589370539,0.77089,2593.5,2593.4,12.2657]
[1751589370840,0.77089,2593.5,2593.4,14.87931117]
[1751589371839,40.8,2593.6,2593.5,0.77089]
[1751589372239,40.8,2593.6,2593.5,2.04549]
[1751589372738,0.77086,2593.6,2593.5,2.04549]
[1751589373834,0.77086,2593.6,2593.5,0.77089]
[1751589377943,0.77086,2593.6,2593.5,3.38450117]
[1751589380152,0.77086,2593.7,2593.6,4.05364117]
[1751589382648,40.8,2593.9,2593.7,0.7708]
[1751589382848,40.8,2593.9,2593.8,2.61361117]
[1751589384351,41.57077,2593.9,2593.8,3.38441117]
[1751589393766,0.77077,2593.9,2593.8,3.38441117]
[1751589394164,0.77077,2593.9,2593.8,4.04091117]
[1751589394863,0.77077,2594.1,2594.0,0.77071]
[1751589395062,0.77077,2594.1,2594.0,3.38432117]
[1751589395365,41.57077,2594.1,2594.0,2.61361117]
[1751589395554,1.92686,2594.0,2593.2,10.846]
[1751589395864,0.7708,2593.8,2593.7,3.38444117]
[1751589397963,3.33014,2593.9,2593.3,36.3488]
[1751589397964,0.77083,2593.7,2593.6,0.77084]
[1751589398269,0.77092,2593.6,2593.5,3.38448117]
[1751589412574,0.77092,2593.6,2593.5,2.61361117]
[1751589412776,0.77104,2593.0,2592.9,7.9774611]
[1751589412979,1.92723,2593.5,2592.7,3.38472117]
[1751589412980,0.7711,2592.8,2592.7,3.38472117]
[1751589413279,1.92744,2593.3,2592.7,3.38472117]
[1751589413280,1.4534,2592.9,2592.8,0.7711]
[1751589414080,40.8,2593.2,2593.0,0.77101]
[1751589414285,1.45335,2593.1,2593.0,0.77101]
[1751589414482,0.77108,2593.0,2592.9,0.77105]
[1751589415581,0.77108,2593.0,2592.9,3.38466117]
[1751589416281,0.77108,2593.0,2592.9,4.04166117]
[1751589417984,40.8,2593.2,2592.9,3.27061117]
[1751589418179,41.57099,2593.2,2593.1,3.38462117]
[1751589420188,41.57099,2593.2,2593.1,6.59242117]
[1751589420686,0.77099,2593.2,2593.1,6.59242117]
[1751589423588,0.77099,2593.2,2593.1,5.82141117]
[1751589424288,0.77099,2593.2,2593.1,6.59242117]
[1751589425588,0.77099,2593.2,2593.1,3.38462117]
[1751589425790,0.77104,2593.1,2593.0,0.77102]
[1751589434198,0.77104,2593.0,2592.9,5.36417117]
[1751589434397,1.43574,2593.0,2592.9,0.77106]
[1751589435799,0.77107,2592.9,2592.8,3.97888]
[1751589436100,0.77107,2592.9,2592.8,3.2078]
[1751589436494,2.15427,2592.9,2592.8,3.9789]
[1751589436699,0.77107,2592.9,2592.8,3.9789]
[1751589443305,1.43577,2593.0,2592.9,0.77107]
[1751589443505,1.43577,2593.0,2592.9,3.38468117]
[1751589447009,0.6647,2593.0,2592.9,3.38468117]
[1751589447210,0.77099,2593.3,2593.2,0.77095]
[1751589447400,0.6624,2593.3,2593.2,0.77095]
[1751589447606,41.4624,2593.3,2593.2,0.77095]
[1751589448109,42.23335,2593.3,2593.2,0.77095]
[1751589451612,41.4624,2593.3,2593.2,0.77095]
[1751589452012,42.23335,2593.3,2593.2,0.77095]
[1751589452413,0.6624,2593.3,2593.2,0.77095]
[1751589452812,1.43335,2593.3,2593.2,0.77095]
[1751589453113,0.6624,2593.3,2593.2,0.77095]
[1751589453515,3.2078,2593.7,2593.2,0.77095]
[1751589453516,3.2078,2593.7,2593.6,0.77086]
[1751589453818,1.46556,2594.0,2593.9,0.77077]
[1751589454013,43.40241935,2594.0,2593.9,3.38438117]
[1751589454214,41.4948,2594.0,2593.9,3.38438117]
[1751589454811,42.26554,2594.0,2593.9,3.38438117]
[1751589455314,41.57074,2594.0,2593.9,3.38438117]
[1751589455616,41.57074,2594.0,2593.8,0.77079]
[1751589455617,0.7708,2593.9,2593.8,0.77079]
[1751589459412,40.8,2594.0,2593.7,3.95501117]
[1751589459413,41.57076,2594.0,2593.9,0.77077]
[1751589459615,41.57076,2594.0,2593.9,3.38438117]
[1751589460012,0.77076,2594.0,2593.9,3.38438117]
[1751589463221,40.8,2594.2,2594.1,0.77071]
[1751589463421,40.8,2594.2,2594.1,3.38432117]
[1751589463824,0.77068,2594.2,2594.1,3.38432117]
[1751589464324,0.77068,2594.2,2594.1,4.02732117]
[1751589465428,0.77074,2594.1,2593.9,3.2078]
[1751589465630,0.77074,2594.0,2593.9,3.2078]
[1751589465826,2.16874,2594.0,2593.9,3.97857]
[1751589466628,2.16874,2594.0,2593.9,3.2078]
[1751589469030,0.77077,2593.9,2593.8,3.2078]
[1751589469229,2.13687,2593.9,2593.8,3.2078]
[1751589472830,0.7708,2593.8,2593.7,0.77081]
[1751589473030,0.7708,2593.8,2593.7,3.97861]
[1751589473734,0.7708,2593.8,2593.7,0.77081]
[1751589477838,0.77086,2593.7,2593.6,0.77084]
[1751589478037,1.41106,2593.7,2593.6,0.77084]
[1751589478440,1.41106,2593.7,2593.4,3.2078]
[1751589478643,0.77097,2593.3,2593.2,0.77094]
[1751589478834,2.61361117,2593.5,2593.1,3.2078]
[1751589478835,0.77098,2593.2,2593.1,3.2078]
[1751589479042,1.47198,2593.2,2593.1,3.2078]
[1751589480039,1.47198,2593.2,2593.1,3.97881]
[1751589480646,42.27198,2593.2,2593.1,3.97881]
[1751589481144,40.8,2593.2,2593.1,3.97881]
[1751589481344,40.8,2593.2,2593.1,4.61581]
[1751589481545,41.57098,2593.2,2593.1,4.61581]
[1751589483745,40.8,2593.2,2593.1,4.61581]
[1751589484144,40.8,2593.2,2593.1,5.91311]
[1751589485347,41.57098,2593.2,2593.1,5.91311]
[1751589485949,41.57098,2593.2,2593.1,4.61581]
[1751589491648,41.57098,2593.2,2593.1,1.40801]
[1751589493252,41.57098,2593.2,2593.1,0.77101]
[1751589497256,41.57098,2593.2,2593.1,2.08861]
[1751589497655,0.77098,2593.2,2593.1,2.08861]
[1751589501760,0.77098,2593.2,2593.1,0.77101]
[1751589501960,0.77098,2593.2,2593.1,3.38462117]
[1751589506265,0.77098,2593.2,2593.1,0.77101]
[1751589509564,0.77098,2593.2,2593.1,3.38462117]
[1751589510163,0.77098,2593.2,2593.1,0.77101]
[1751589512659,46.9648294,2593.2,2592.6,3.2078]
[1751589512861,46.9648294,2593.2,2592.3,3.2078]
[1751589512862,0.77122,2592.4,2592.3,3.2078]
[1751589513162,0.77134,2592.0,2591.9,3.2078]
[1751589513564,0.77134,2592.0,2591.9,3.97917]
[1751589514958,0.77134,2592.0,2591.9,4.67717]
[1751589518167,0.77134,2592.0,2591.9,3.9058]
[1751589519274,0.77134,2592.0,2591.9,4.67717]
[1751589519773,0.77134,2592.0,2591.9,1.46937]
[1751589520571,0.77133,2592.1,2592.0,0.77131]
[1751589520776,0.77133,2592.1,2592.0,3.38492117]
[1751589521167,0.6785,2592.3,2592.0,2.61361117]
[1751589521477,41.57124,2592.4,2592.3,0.77125]
[1751589525482,41.57124,2592.4,2592.3,1.41565]
[1751589539286,0.77134,2592.1,2592.0,0.7713]
[1751589540283,0.77134,2592.0,2591.9,1.3695]
[1751589540587,0.77137,2591.9,2591.8,3.2078]
[1751589540891,2.12527,2591.9,2591.8,3.2078]
[1751589542188,0.77142,2591.8,2591.7,0.7714]
[1751589542381,1.40962,2591.8,2591.7,6.59281117]
[1751589542584,0.77139,2591.9,2591.8,0.77135]
[1751589542785,0.77139,2591.9,2591.8,0.641]
[1751589543187,0.77139,2591.9,2591.8,1.4124]
[1751589544990,0.77134,2592.0,2591.9,0.77137]
[1751589545190,0.77134,2592.0,2591.9,4.08398117]
[1751589545391,0.77137,2591.9,2591.8,1.41237]
[1751589545891,0.7714,2591.8,2591.7,3.97922]
[1751589546091,1.4687,2591.8,2591.7,3.97922]
[1751589547092,1.4687,2591.8,2591.7,3.2078]
[1751589548989,1.4687,2591.8,2591.5,1.94047117]
[1751589548990,0.77146,2591.6,2591.5,1.94047117]
[1751589549192,0.77146,2591.6,2591.5,0.77146]
[1751589549794,1.41975,2591.7,2591.6,0.77146]
[1751589549996,0.77145,2591.7,2591.6,3.38507117]
[1751589550392,0.7715,2591.6,2591.5,0.77146]
[1751589551898,0.77149,2591.5,2591.4,0.7715]
[1751589557305,0.77148,2591.6,2591.5,0.77143]
[1751589559312,0.77144,2591.7,2591.6,0.77143]
[1751589559601,0.6973,2591.8,2591.7,0.77143]
[1751589559800,1.46871,2591.8,2591.7,0.77143]
[1751589560898,0.77139,2591.9,2591.8,0.7714]
[1751589561405,0.2286,2591.8,2591.7,0.77143]
[1751589561596,0.2286,2591.8,2591.7,4.76124117]
[1751589566607,3.97902,2592.5,2592.4,0.77122]
[1751589566807,3.97902,2592.5,2592.4,3.38483117]
[1751589567998,4.64992,2592.5,2592.4,3.38483117]
[1751589569401,1.44212,2592.5,2592.4,3.38483117]
[1751589569807,1.44212,2592.5,2592.4,0.77122]
[1751589572408,41.57118,2592.6,2592.5,0.77119]
[1751589574211,0.77119,2592.5,2592.4,3.38480117]
[1751589574811,0.77119,2592.5,2592.4,0.77119]
[1751589578610,41.57118,2592.6,2592.5,0.77119]
[1751589583912,1.41984,2592.7,2592.6,0.77116]
[1751589584510,1.41983,2592.7,2592.6,0.77116]
[1751589589420,0.77112,2592.8,2592.7,0.77113]
[1751589589717,0.77112,2592.8,2592.7,3.38474117]
[1751589590721,0.77109,2592.9,2592.8,0.77107]
[1751589596925,44.0078,2593.0,2592.9,0.77107]
[1751589597127,3.2078,2593.0,2592.9,3.38468117]
[1751589597620,3.97884,2593.0,2592.9,0.77107]
[1751589602523,0.77104,2593.0,2592.9,0.77107]
[1751589608523,45.47523,2593.1,2593.0,0.77104]
[1751589608718,5.92452117,2593.4,2593.1,1.92748]
[1751589608719,3.2078,2593.4,2593.1,1.92748]
[1751589609024,3.97864,2593.7,2593.6,0.77086]
[1751589609532,5.28124,2593.7,2593.6,0.77086]
[1751589612825,0.77089,2593.6,2593.5,0.77086]
[1751589613131,0.6732,2593.6,2593.5,0.77086]
[1751589614333,3.97855,2594.0,2593.9,0.77077]
[1751589614736,44.0078,2594.0,2593.9,0.77077]
[1751589615230,44.0078,2594.0,2593.9,3.38438117]
[1751589616027,3.2078,2594.0,2593.9,3.38438117]
[1751589616535,40.8,2594.1,2594.0,0.77074]